bitfinex/quotes_ETHUSD_20250511
["timestamp","ask_amount","ask_price","bid_price","bid_amount"]
[1746949338499,4.0482552,2470.2,2469.1,0.55]
[1746949338793,4.04852822,2470.1,2469.1,0.55]
[1746949338957,0.04053725,2470.0,2469.0,0.8147]
[1746949339157,6.5746,2470.4,2469.1,0.55]
[1746949339400,0.04053725,2470.3,2469.1,0.55]
[1746949339581,7.23206,2470.4,2469.1,0.55]
[1746949339781,6.5746,2470.4,2468.8,0.55]
[1746949339983,6.5746,2470.4,2469.0,0.55]
[1746949340292,6.5746,2470.4,2469.2,0.55]
[1746949340701,6.5746,2470.4,2469.4,0.55]
[1746949341005,6.5746,2470.4,2470.0,0.55]
[1746949341217,4.261,2474.0,2470.3,0.8147]
[1746949341516,4.04547813,2471.9,2470.5,0.55]
[1746949341692,0.04053725,2472.3,2470.6,0.04045912]
[1746949341919,0.04053725,2472.8,2470.7,0.8147]
[1746949342229,4.04432581,2472.6,2470.9,8.55]
[1746949342400,0.75,2473.0,2471.2,0.55]
[1746949342401,0.84938606,2472.5,2471.2,0.55]
[1746949342601,0.04053725,2472.5,2471.4,0.812]
[1746949342803,0.04053725,2473.0,2471.4,0.812]
[1746949343026,0.04053725,2473.0,2471.5,0.04045881]
[1746949343218,0.04053725,2473.0,2471.4,0.812]
[1746949343404,4.04428889,2472.7,2471.4,0.812]
[1746949343609,0.04053725,2472.8,2471.5,0.04044652]
[1746949343841,0.04053725,2473.0,2471.7,0.812]
[1746949344006,4.04541696,2472.0,2471.7,0.812]
[1746949344330,8.04053725,2473.0,2471.7,0.812]
[1746949344528,4.04530315,2472.1,2471.7,0.812]
[1746949344736,4.04504956,2472.2,2471.7,0.812]
[1746949344938,4.08575456,2472.1,2470.9,0.812]
[1746949345106,0.04053725,2472.1,2471.0,0.04046613]
[1746949345296,0.04053725,2472.3,2471.0,0.55]
[1746949345496,4.04489931,2472.3,2471.0,0.55]
[1746949345705,4.08506775,2472.5,2471.0,0.55]
[1746949345942,0.04053725,2472.5,2471.1,0.812]
[1746949346244,0.04053725,2473.5,2471.5,0.812]
[1746949346394,4.0430177,2473.4,2471.5,0.812]
[1746949346600,8.04053725,2473.3,2471.5,0.812]
[1746949346822,4.08379081,2473.3,2471.3,0.55]
[1746949347019,4.04417124,2472.7,2471.5,0.55]
[1746949347220,4.08403134,2473.2,2471.1,1.3433]
[1746949347418,0.04053725,2473.2,2471.3,0.55]
[1746949347621,0.40837908,2473.3,2471.9,0.55]
[1746949347825,4.04236397,2473.8,2472.0,0.7933]
[1746949348066,0.04053725,2473.7,2472.1,13.352]
[1746949348228,8.0,2473.8,2472.1,13.352]
[1746949348432,0.04053725,2473.7,2472.1,13.352]
[1746949348820,4.04332509,2473.3,2472.1,13.352]
[1746949349039,4.04362566,2473.1,2472.1,13.352]
[1746949349246,4.08394981,2473.2,2472.1,13.352]
[1746949349451,4.04341256,2473.2,2472.1,13.352]
[1746949349615,4.04341256,2473.2,2472.3,0.7933]
[1746949349935,4.04346891,2473.2,2472.3,0.7933]
[1746949350138,0.04053725,2473.6,2472.3,3.00783]
[1746949350333,4.04291777,2473.5,2472.3,3.00783]
[1746949350642,4.04314708,2473.4,2472.3,3.00783]
[1746949350844,4.04322647,2473.3,2472.3,0.7933]
[1746949351137,8.828,2474.4,2472.3,0.7933]
[1746949351138,0.04053725,2473.2,2472.3,0.7933]
[1746949351346,4.04446645,2472.6,2472.3,0.7933]
[1746949351526,0.04053725,2472.5,2472.3,0.7933]
[1746949351862,5.41618889,2473.5,2472.3,0.7933]
[1746949351863,0.04053725,2473.0,2472.3,0.7933]
[1746949352136,4.04464721,2472.5,2472.3,0.7933]
[1746949352436,4.04420648,2472.7,2472.3,0.7933]
[1746949352643,4.04416225,2472.7,2472.3,0.7933]
[1746949352843,4.04417044,2472.7,2472.3,0.7933]
[1746949353134,4.04424807,2472.7,2472.3,0.7933]
[1746949353302,0.04053725,2472.8,2472.3,0.7933]
[1746949353510,0.04053725,2473.0,2472.3,0.7933]
[1746949353924,0.04053725,2473.3,2472.3,0.7933]
[1746949354447,4.04334465,2473.2,2472.3,0.7933]
[1746949354617,4.04444368,2472.6,2472.3,0.7933]
[1746949354819,4.04377473,2473.0,2472.3,0.7933]
[1746949355042,0.04053725,2472.9,2472.3,0.7933]
[1746949355352,4.04411589,2472.8,2472.3,0.7933]
[1746949355564,4.04367165,2473.0,2472.3,0.7933]
[1746949355718,4.04309628,2473.4,2472.3,0.7933]
[1746949355719,4.04465092,2472.5,2472.3,0.7933]
[1746949355920,4.4887824,2472.9,2472.3,0.7933]
[1746949356124,4.04498017,2472.2,2472.1,13.352]
[1746949356433,4.04610529,2471.6,2471.3,0.8014]
[1746949356637,4.04628955,2471.4,2471.3,0.8014]
[1746949356853,0.40868268,2471.4,2469.8,0.8014]
[1746949357062,4.04727213,2470.8,2470.0,0.01123561]
[1746949357254,4.04841909,2470.1,2470.0,0.01123561]
[1746949357460,0.04053725,2470.5,2470.0,0.01123561]
[1746949357624,4.0482429,2470.3,2470.0,0.01123561]
[1746949357829,4.04841909,2470.1,2470.0,0.01123561]
[1746949358075,0.04053725,2470.2,2470.0,0.01123561]
[1746949358076,0.04053725,2470.4,2470.0,0.01123561]
[1746949358228,2.41066416,2472.9,2470.0,0.01123561]
[1746949358229,0.04053725,2471.2,2470.0,0.01123561]
[1746949358578,0.04053725,2471.2,2470.1,13.346]
[1746949358751,4.04646386,2471.3,2470.2,0.8315]
[1746949358932,4.04678078,2471.1,2470.2,0.8315]
[1746949359122,0.04053725,2471.1,2470.2,0.8315]
[1746949359322,4.0467641,2471.2,2470.2,0.8315]
[1746949359571,4.04607333,2471.6,2470.2,0.8315]
[1746949359864,4.0464563,2471.3,2470.2,0.8315]
[1746949360030,4.08729039,2471.2,2470.2,0.8315]
[1746949360231,4.0468276,2471.1,2470.2,0.8315]
[1746949360427,0.04053725,2471.2,2470.2,0.8315]
[1746949360730,4.04738062,2470.8,2469.1,0.8315]
[1746949360965,4.04759977,2470.6,2469.1,0.8315]
[1746949361164,0.04053725,2470.5,2469.1,0.8315]
[1746949361328,4.04903457,2469.8,2469.1,0.8315]
[1746949361536,0.04053725,2470.3,2469.1,0.8315]
[1746949361745,4.04859677,2470.0,2469.1,0.8315]
[1746949361966,4.04839589,2470.2,2469.1,0.8315]
[1746949361967,0.04053725,2470.1,2469.1,0.8315]
[1746949362151,0.03792599,2470.3,2469.1,0.8315]
[1746949362461,4.0482552,2470.2,2469.1,1.71465]
[1746949362660,4.04845145,2470.1,2469.1,1.71465]
[1746949363030,0.03792599,2470.2,2469.1,1.71465]
[1746949363455,4.0486917,2470.0,2469.1,0.8315]
[1746949363664,4.049188,2469.7,2469.1,0.8315]
[1746949363866,4.04942153,2469.5,2469.1,0.8315]
[1746949364374,4.04983255,2469.3,2469.1,0.8315]
[1746949364580,0.03792599,2469.4,2468.8,13.349]
[1746949364745,4.05027855,2469.0,2468.8,13.34403358]
[1746949365066,4.5982115,2470.3,2468.8,13.34403358]
[1746949365248,4.04954182,2469.5,2468.8,13.34403358]
[1746949365449,0.03792599,2469.4,2468.8,13.34403358]
[1746949365650,4.05038681,2468.9,2468.8,13.34403358]
[1746949365983,4.08737807,2469.5,2468.2,0.7659]
[1746949366147,0.03792599,2469.5,2468.2,0.7659]
[1746949366348,4.05016145,2469.1,2468.2,0.7659]
[1746949366582,0.03792599,2469.0,2468.2,0.7659]
[1746949366877,4.05028663,2469.0,2468.2,0.7659]
[1746949367053,0.03792599,2469.2,2468.2,0.7659]
[1746949367374,0.03792599,2469.3,2468.3,0.04050833]
[1746949367779,4.08776952,2469.3,2468.3,0.04050833]
[1746949367947,4.08774161,2469.3,2468.3,0.04050285]
[1746949368148,0.44670015,2469.3,2468.3,0.04050286]
[1746949368365,0.03792599,2469.3,2468.2,0.7659]
[1746949368567,4.049849,2469.3,2468.2,0.7659]
[1746949368774,0.03792599,2469.2,2468.2,0.7659]
[1746949369004,0.03792599,2469.2,2467.9,0.04050961]
[1746949369005,7.88511488,2469.2,2467.9,0.04050961]
[1746949369304,4.05131698,2468.4,2467.4,0.04052101]
[1746949369446,0.03792599,2468.3,2467.4,0.04052101]
[1746949369650,4.08903853,2468.5,2467.4,0.04052101]
[1746949369846,4.05127877,2468.4,2467.4,0.04052101]
[1746949370047,0.03792599,2468.3,2467.3,0.7735]
[1746949370259,0.03792599,2468.7,2467.3,0.7735]
[1746949370463,4.05126659,2468.4,2467.3,0.7735]
[1746949370656,0.03792599,2468.3,2467.3,0.7735]
[1746949370859,0.8022,2468.2,2466.8,13.356]
[1746949371097,4.05259411,2467.6,2466.8,14.76895]
[1746949371259,4.0519724,2468.0,2466.9,0.04052584]
[1746949371467,0.03792599,2467.9,2466.9,0.04052322]
[1746949371662,0.03792599,2467.9,2466.8,13.356]
[1746949371875,4.0513032,2468.4,2467.1,0.7735]
[1746949372074,4.05171887,2468.1,2467.1,0.7735]
[1746949372386,0.30920508,2469.8,2467.9,0.8163]
[1746949372562,4.05066851,2468.8,2467.9,0.8163]
[1746949372750,4.05049394,2468.9,2468.0,0.04050927]
[1746949373064,4.08849514,2468.8,2468.0,0.04050927]
[1746949373265,0.03792599,2468.8,2468.0,0.04050927]
[1746949373473,8.0,2469.2,2467.9,0.8163]
[1746949373791,0.03792599,2469.1,2467.9,0.8163]
[1746949373989,4.05186385,2468.0,2467.9,0.8163]
[1746949374290,4.05153651,2468.2,2467.0,0.8175]
[1746949374587,4.05198402,2468.0,2467.0,0.8175]
[1746949374792,0.03792599,2467.9,2467.0,0.8175]
[1746949375289,0.03792599,2467.9,2467.1,0.04053059]
[1746949375607,4.05228369,2467.8,2467.1,0.04053059]
[1746949375887,0.03792599,2467.9,2467.1,0.04053059]
[1746949375888,4.09001477,2467.9,2467.1,0.04053059]
[1746949376086,4.05235644,2467.7,2467.1,0.04053059]
[1746949376286,4.09002022,2467.9,2467.1,0.04053059]
[1746949376457,4.05169171,2468.2,2467.1,0.04053059]
[1746949376658,8.0,2468.8,2467.0,0.8175]
[1746949376659,1.26029516,2468.1,2467.0,0.8175]
[1746949376891,4.05209353,2467.9,2467.0,0.8175]
[1746949377189,4.08988482,2468.0,2467.1,0.04053057]
[1746949377357,4.05206596,2467.9,2467.0,0.8175]
[1746949377558,0.03792599,2467.8,2467.0,0.8175]
[1746949377755,4.05228774,2467.8,2467.0,0.8175]
[1746949377951,4.09021373,2467.8,2467.0,0.8175]
[1746949378177,0.03792599,2468.0,2467.0,2.23485]
[1746949378368,12.10846592,2468.3,2467.0,2.23485]
[1746949378564,0.03792599,2468.2,2467.0,2.23485]
[1746949378764,4.05169968,2468.1,2467.0,2.23485]
[1746949378965,8.025,2468.9,2467.2,0.8175]
[1746949379179,0.03792599,2468.8,2467.2,0.8175]
[1746949379390,0.03792599,2468.8,2467.3,0.04051531]
[1746949379590,4.08857103,2468.8,2467.2,0.8175]
[1746949379879,4.05161616,2468.2,2467.2,0.8175]
[1746949380077,0.03792599,2468.1,2467.2,0.8175]
[1746949380273,0.03792599,2468.1,2467.2,1.040985]
[1746949380513,8.32937467,2468.9,2467.2,0.8175]
[1746949380514,8.03792599,2468.8,2467.2,0.8175]
[1746949380689,4.05248995,2467.7,2467.2,0.8175]
[1746949380888,0.03792599,2467.6,2467.2,0.8175]
[1746949381086,4.05270434,2467.5,2467.2,0.8175]
[1746949381287,0.03792599,2467.6,2467.2,0.8175]
[1746949381800,0.03792599,2468.7,2467.3,0.04052987]
[1746949382005,4.0488331,2469.9,2467.7,0.8094]
[1746949382006,0.03792599,2469.6,2467.7,0.8094]
[1746949382321,0.03792599,2469.8,2468.1,0.8094]
[1746949382523,4.08687411,2469.8,2468.3,1.3594]
[1746949382812,4.04820523,2470.3,2468.6,0.8094]
[1746949383027,0.03792599,2470.5,2469.0,0.8094]
[1746949383318,2.61356716,2470.2,2469.4,0.8094]
[1746949383516,2.61356716,2470.2,2469.7,0.55]
[1746949383813,3.39763731,2470.9,2470.1,0.6254]
[1746949384013,3.39763731,2470.9,2470.2,0.0404678]
[1746949384213,3.39763731,2470.9,2470.4,0.6254]
[1746949385088,3.39763731,2470.9,2470.5,0.0404674]
[1746949385297,3.39763731,2470.9,2470.4,0.6257]
[1746949385686,0.03792599,2470.8,2469.6,0.6257]
[1746949386190,4.04743594,2470.7,2469.6,0.6257]
[1746949386510,4.04888173,2469.9,2469.6,0.6257]
[1746949386814,4.08686241,2469.8,2469.1,0.6257]
[1746949387015,0.03792599,2469.8,2469.1,0.6257]
[1746949387185,4.04923014,2469.7,2469.1,0.6257]
[1746949387381,4.08716473,2469.6,2469.1,0.6257]
[1746949387718,0.77,2470.4,2469.1,0.6257]
[1746949387719,0.03792599,2470.0,2469.1,0.6257]
[1746949388019,0.03792599,2470.3,2469.1,0.6257]
[1746949388224,4.04797418,2470.4,2469.6,0.04048697]
[1746949388383,7.721,2471.1,2469.6,0.04048697]
[1746949388583,7.721,2471.1,2469.5,14.7015]
[1746949388584,8.03792599,2471.0,2469.7,0.6257]
[1746949388905,12.08493064,2471.0,2469.7,0.6257]
[1746949389109,4.04756586,2470.7,2469.7,0.6257]
[1746949389286,0.03792599,2470.6,2469.7,2.15842]
[1746949389613,0.03792599,2470.6,2469.7,0.6257]
[1746949389813,4.04786913,2470.5,2469.8,0.04047901]
[1746949390013,4.04792746,2470.4,2469.7,0.6257]
[1746949390219,4.0475432,2470.7,2469.7,0.6257]
[1746949390388,0.03792599,2471.2,2469.7,0.6257]
[1746949390582,4.49304789,2471.2,2469.7,0.6257]
[1746949390784,4.04821705,2470.3,2469.7,0.6257]
[1746949391004,4.04832114,2470.2,2469.7,0.6257]
[1746949391191,4.04854155,2470.1,2469.7,0.6257]
[1746949391392,4.04891084,2469.8,2469.7,0.6257]
[1746949391597,4.04923874,2469.6,2469.5,13.365]
[1746949392087,0.03792599,2470.2,2469.5,13.365]
[1746949392388,4.0483095,2470.2,2469.6,0.04048791]
[1746949392705,4.08646242,2470.1,2469.6,0.04049056]
[1746949392891,4.04853643,2470.1,2469.5,13.365]
[1746949393089,4.08623813,2470.2,2469.5,13.365]
[1746949393284,4.08587633,2470.4,2469.6,0.04048536]
[1746949393522,4.04851661,2470.1,2469.5,13.365]
[1746949393725,4.08555843,2470.6,2469.5,13.365]
[1746949393902,4.04806547,2470.4,2469.6,0.04048423]
[1746949394097,0.03792599,2470.6,2469.6,0.04048423]
[1746949394329,0.7974,2471.4,2469.7,0.6257]
[1746949394500,4.04555326,2471.9,2469.9,0.6257]
[1746949394501,0.03792599,2471.3,2469.9,0.6257]
[1746949394699,4.04579843,2471.7,2470.1,0.6257]
[1746949394899,0.03792599,2471.7,2470.3,0.6257]
[1746949395090,11.55975644,2471.8,2470.5,0.6257]
[1746949395286,7.514,2471.8,2470.6,0.04046015]
[1746949395592,4.04517023,2472.1,2470.7,0.6257]
[1746949395788,0.03792599,2472.5,2470.9,8.55]
[1746949396021,0.03792599,2472.5,2471.1,0.6257]
[1746949396396,4.04541491,2472.0,2471.1,0.6257]
[1746949396595,4.04465296,2472.4,2471.2,0.04045607]
[1746949396896,0.03792599,2472.3,2471.1,0.6257]
[1746949397091,8.0,2472.4,2471.1,0.6257]
[1746949397292,11.5212365,2472.7,2471.1,0.6257]
[1746949397293,4.04498017,2472.2,2471.1,0.6257]
[1746949397512,4.04535991,2472.0,2471.1,0.6257]
[1746949397820,7.45792599,2472.5,2471.1,0.6257]
[1746949398163,4.04481656,2472.3,2471.1,0.6257]
[1746949398424,4.04556142,2471.9,2471.1,0.6257]
[1746949398627,0.03792599,2472.0,2471.1,0.6257]
[1746949398803,4.04558274,2471.9,2471.1,0.6257]
[1746949398991,4.04569649,2471.8,2471.1,0.6257]
[1746949399193,4.0456642,2471.8,2471.1,0.6257]
[1746949399395,4.04592241,2471.7,2471.1,0.6257]
[1746949399598,4.04554284,2471.9,2471.1,0.6257]
[1746949399797,0.03792599,2472.3,2471.1,0.6257]
[1746949399993,4.04553591,2471.9,2471.1,0.6257]
[1746949400193,0.03792599,2472.3,2471.2,0.04045578]
[1746949400406,0.03792599,2472.3,2471.3,0.04045578]
[1746949400608,4.04540517,2472.0,2471.1,0.6257]
[1746949400808,4.04605147,2471.6,2471.1,0.6257]
[1746949401102,0.03792599,2472.0,2471.1,0.6257]
[1746949401303,4.04491985,2472.3,2471.1,0.6257]
[1746949401304,0.03792599,2472.7,2471.2,0.04045867]
[1746949401638,0.03792599,2472.7,2471.2,0.04045188]
[1746949401945,0.03792599,2472.7,2471.1,0.6257]
[1746949402151,4.08212085,2472.7,2471.1,0.6257]
[1746949402318,0.40821209,2472.6,2471.1,0.6257]
[1746949402507,4.0824599,2472.5,2471.1,0.6257]
[1746949402707,4.04530035,2472.1,2471.1,0.6257]
[1746949403035,4.04505369,2472.2,2471.1,0.6257]
[1746949403237,4.04506939,2472.2,2471.1,0.6257]
[1746949403454,0.03792599,2472.3,2471.1,0.6257]
[1746949403626,4.04468662,2472.4,2471.3,0.6257]
[1746949403803,0.03792599,2472.8,2471.3,0.6257]
[1746949404010,4.04396846,2472.9,2471.4,0.59044652]
[1746949404327,0.03792599,2472.9,2471.6,0.55]
[1746949404507,4.04369828,2473.0,2471.7,0.04044096]
[1746949404842,4.08145856,2473.1,2471.8,0.6257]
[1746949405208,0.03792599,2473.1,2471.8,0.6257]
[1746949405609,7.191,2473.4,2472.0,0.6257]
[1746949405909,0.8158,2474.1,2472.2,8.6257]
[1746949406139,4.07996317,2474.0,2472.4,0.6257]
[1746949406443,0.03792599,2474.0,2472.4,0.6257]
[1746949406744,4.04290421,2473.5,2472.4,0.6257]
[1746949406910,0.03792599,2473.4,2472.4,0.6257]
[1746949407106,4.04301088,2473.5,2472.4,0.6257]
[1746949407312,4.0427547,2473.6,2472.4,0.6257]
[1746949407739,0.03792599,2473.9,2472.4,0.6257]
[1746949408019,4.04331779,2473.3,2472.4,0.6257]
[1746949408320,4.04448938,2472.5,2472.4,0.6257]
[1746949408702,4.04470393,2472.4,2472.1,13.351]
[1746949408904,0.03792599,2472.8,2472.1,13.351]
[1746949409108,4.04492551,2472.3,2472.1,13.351]
[1746949409342,0.03792599,2472.8,2472.1,13.351]
[1746949409642,4.04484668,2472.3,2472.1,13.351]
[1746949409829,4.04498017,2472.2,2472.1,13.351]
[1746949410203,4.04490536,2472.3,2472.1,13.351]
[1746949410454,0.03792599,2472.8,2472.1,13.351]
[1746949411114,4.04477861,2472.4,2472.1,13.351]
[1746949411437,4.044553,2472.5,2472.1,13.351]
[1746949411934,4.04450403,2472.5,2472.1,13.351]
[1746949412135,4.04498017,2472.2,2472.1,13.351]
[1746949413339,0.03792599,2472.5,2472.1,13.351]
[1746949413544,4.04477877,2472.4,2472.1,13.351]
[1746949413734,4.04485297,2472.3,2472.1,13.351]
[1746949414141,0.03792599,2472.7,2472.1,13.351]
[1746949414442,4.04383517,2472.9,2472.1,13.351]
[1746949414630,0.03792599,2472.8,2472.2,0.04044707]
[1746949414827,4.04363279,2473.1,2472.2,1.44216178]
[1746949415052,4.08130309,2473.2,2472.2,1.44216178]
[1746949415254,0.7997,2473.8,2472.2,1.44216178]
[1746949415546,0.03792599,2473.7,2472.2,1.40171471]
[1746949415960,4.04429778,2472.7,2472.1,13.351]
[1746949416113,4.04404175,2472.8,2472.1,13.351]
[1746949416651,4.04433031,2472.6,2472.1,13.351]
[1746949416809,4.04488204,2472.3,2472.1,13.351]
[1746949417018,4.04498017,2472.2,2472.1,13.351]
[1746949417217,4.04485964,2472.3,2472.1,13.351]
[1746949417726,4.04498017,2472.2,2472.1,13.351]
[1746949417940,4.08290616,2472.2,2472.1,13.351]
[1746949418125,4.04277504,2473.6,2472.1,14.74867]
[1746949418321,4.04492326,2472.3,2472.1,13.351]
[1746949418632,4.04498017,2472.2,2472.1,13.351]
[1746949419155,4.04487065,2472.3,2472.1,13.351]
[1746949419467,4.04422966,2472.7,2472.1,13.351]
[1746949419853,4.08163095,2473.0,2472.1,13.351]
[1746949420052,4.04392835,2472.9,2472.1,13.351]
[1746949420226,4.04392835,2472.9,2472.1,14.74867]
[1746949420542,4.08179824,2472.9,2472.1,14.74867]
[1746949420743,4.0439987,2472.8,2472.1,14.74867]
[1746949420953,4.04425357,2472.7,2472.1,13.351]
[1746949421150,0.03792599,2472.9,2472.1,13.351]
[1746949421151,4.0439987,2472.8,2472.1,13.351]
[1746949421463,4.04588556,2471.7,2471.5,0.6257]
[1746949421626,4.04631512,2471.4,2471.0,0.6257]
[1746949421822,4.04678078,2471.1,2471.0,0.6257]
[1746949422023,4.04678078,2471.1,2469.6,1.34054842]
[1746949422024,4.04759977,2470.6,2470.1,0.6257]
[1746949422231,0.03792599,2471.0,2470.1,0.6257]
[1746949422457,4.04790728,2470.5,2470.1,0.6257]
[1746949422624,4.04821329,2470.3,2470.1,0.6257]
[1746949422825,0.03792599,2470.8,2470.2,0.0404806]
[1746949423061,6.68,2471.1,2470.1,0.6257]
[1746949423222,4.04720663,2470.9,2470.1,0.6257]
[1746949423421,4.08491697,2471.0,2470.1,0.6257]
[1746949423667,0.03792599,2471.0,2470.1,0.6257]
[1746949423977,4.04786823,2470.5,2470.1,0.6257]
[1746949424267,0.03792599,2471.0,2470.1,0.6257]
[1746949424453,4.0478613,2470.5,2470.1,0.6257]
[1746949424655,4.04795174,2470.4,2470.1,0.6257]
[1746949424949,0.03792599,2470.8,2469.8,13.345]
[1746949425141,4.08529343,2470.8,2469.9,0.04048081]
[1746949425463,4.04798554,2470.4,2469.8,14.87612484]
[1746949425633,0.03792599,2470.8,2469.8,14.87612484]
[1746949425841,10.72687387,2471.1,2469.8,14.87612484]
[1746949425842,4.0483834,2470.2,2469.8,13.345]
[1746949426028,4.04818628,2470.3,2469.8,13.345]
[1746949426556,6.68,2471.1,2469.8,13.345]
[1746949426557,0.03792599,2470.2,2469.8,13.345]
[1746949426769,0.7946,2470.4,2469.8,13.345]
[1746949426974,4.04874691,2469.9,2469.8,13.345]
[1746949427324,4.0866729,2469.9,2469.8,13.345]
[1746949427726,4.0866729,2469.9,2468.6,13.348]
[1746949427727,4.04952806,2469.5,2468.6,13.348]
[1746949427959,0.03792599,2469.4,2468.7,1.37529897]
[1746949428186,4.04975707,2469.3,2468.7,1.3348]
[1746949428360,0.03792599,2469.2,2468.6,13.348]
[1746949428561,0.03792599,2469.6,2468.7,0.04049899]
[1746949428760,0.03792599,2469.9,2468.6,13.348]
[1746949428964,4.04942187,2469.5,2468.6,13.348]
[1746949429164,4.08758568,2469.4,2468.6,13.348]
[1746949429325,0.03792599,2469.4,2468.6,13.348]
[1746949429530,4.0498802,2469.3,2468.6,13.348]
[1746949429731,0.03792599,2469.4,2468.6,13.348]
[1746949429980,4.0492298,2469.7,2468.7,0.04050024]
[1746949430278,4.08687415,2469.8,2468.9,0.6257]
[1746949430462,4.08673611,2469.9,2468.9,0.6257]
[1746949430645,0.03792599,2469.9,2468.9,0.6257]
[1746949430839,4.04952082,2469.5,2468.9,0.6257]
[1746949431036,0.03792599,2469.8,2468.9,0.6257]
[1746949431235,0.03792599,2470.3,2469.1,0.6257]
[1746949431778,4.04875823,2469.9,2469.2,0.04049023]
[1746949431938,0.03792599,2469.8,2469.1,0.6257]
[1746949432272,0.03792599,2470.0,2469.1,0.6257]
[1746949432476,0.51655731,2470.0,2469.1,0.6257]
[1746949432780,4.04934524,2469.6,2469.1,0.6257]
[1746949432988,0.03792599,2469.5,2469.1,0.6257]
[1746949433274,4.04972531,2469.4,2468.7,0.6257]
[1746949433474,4.05032645,2469.0,2468.7,0.6257]
[1746949433636,4.05032645,2469.0,2468.6,13.348]
[1746949433637,0.03792599,2469.1,2468.6,13.348]
[1746949433837,0.03792599,2469.3,2468.6,13.348]
[1746949434073,4.05047754,2468.9,2468.6,13.348]
[1746949434277,0.03792599,2468.9,2468.6,13.348]
[1746949434583,0.03792599,2468.9,2467.1,6.414]
[1746949434584,8.0,2468.8,2467.5,0.6257]
[1746949434881,8.0,2468.5,2467.5,0.6257]
[1746949435090,4.08914673,2468.4,2467.5,0.6257]
[1746949435238,4.05195394,2468.0,2467.5,0.6257]
[1746949435440,4.08996554,2467.9,2467.5,0.6257]
[1746949435639,0.03792599,2467.9,2467.5,0.6257]
[1746949435956,4.05116882,2468.5,2467.5,0.6257]
[1746949435957,0.03792599,2468.1,2467.5,0.6257]
[1746949436160,0.34821552,2468.4,2467.2,0.04052482]
[1746949436361,0.34821552,2468.4,2467.1,13.9817]
[1746949436362,4.05137138,2468.3,2467.1,13.9817]
[1746949436670,0.03792599,2468.2,2467.2,1.17268623]
[1746949436881,0.03792599,2468.5,2467.1,13.9817]
[1746949437174,4.05225026,2467.8,2467.1,13.9817]
[1746949437372,0.03792599,2468.2,2467.2,0.0405261]
[1746949437668,4.05163908,2468.2,2467.2,6.309]
[1746949437872,0.03792599,2468.1,2467.2,8.33807]
[1746949438068,4.04952893,2469.5,2467.2,8.33807]
[1746949438069,0.03792599,2468.5,2467.2,8.33807]
[1746949438269,0.03792599,2468.9,2467.3,0.6257]
[1746949438475,0.7559,2469.5,2467.7,8.6257]
[1746949438771,4.04976132,2469.3,2467.9,0.6257]
[1746949439071,0.03792599,2469.5,2468.1,0.6257]
[1746949439371,0.03792599,2469.5,2468.2,6.309]
[1746949439372,4.08754084,2469.4,2468.2,6.309]
[1746949439541,4.08754084,2469.4,2468.1,0.6257]
[1746949439542,0.03792599,2469.4,2468.3,0.69347]
[1746949439742,4.04983324,2469.3,2468.4,6.309]
[1746949440058,4.08785573,2469.2,2468.4,6.309]
[1746949440263,0.03792599,2469.2,2468.4,19.669]
[1746949440447,4.04976727,2469.3,2468.5,0.04050335]
[1746949440652,0.03792599,2469.2,2468.4,19.669]
[1746949440856,0.03792599,2469.5,2468.5,0.66620237]
[1746949441148,0.03792599,2470.1,2468.5,0.6257]
[1746949441364,4.04934223,2469.6,2468.5,0.6257]
[1746949441552,0.03792599,2469.5,2468.5,0.6257]
[1746949441868,1.05545148,2470.2,2468.5,0.6257]
[1746949441869,0.03792599,2469.7,2468.5,0.6257]
[1746949442070,4.04905689,2469.8,2468.6,2.22616]
[1746949442373,0.03792599,2469.7,2468.7,0.04049681]
[1746949442577,0.03792599,2469.8,2468.6,2.22616]
[1746949443070,4.05014741,2469.1,2468.5,0.6257]
[1746949443273,4.05082164,2468.7,2468.4,19.669]
[1746949443772,0.03792599,2468.6,2467.5,0.6257]
[1746949443976,0.03792599,2468.6,2467.6,6.309]
[1746949444271,4.05064341,2468.8,2467.6,6.34951852]
[1746949444478,0.03792599,2469.1,2467.9,0.55]
[1746949444670,0.03792599,2469.9,2468.2,0.6257]
[1746949444870,0.03792599,2470.0,2468.4,0.6257]
[1746949445470,0.03792599,2470.0,2468.6,0.6257]
[1746949445694,0.33963492,2470.3,2468.7,19.669]
[1746949445861,4.04975286,2469.3,2468.7,19.669]
[1746949446063,0.03792599,2469.2,2468.7,19.669]
[1746949446274,4.05055087,2468.8,2468.7,13.36]
[1746949446579,4.05087904,2468.6,2468.5,6.155]
[1746949446878,0.03792599,2469.0,2468.5,6.155]
[1746949447083,4.05087904,2468.6,2468.5,6.155]
[1746949447473,4.05083425,2468.7,2468.5,6.155]
[1746949447655,0.03792599,2469.0,2468.5,6.155]
[1746949447850,4.05044842,2468.9,2468.5,6.155]
[1746949448074,4.05087904,2468.6,2468.5,6.155]
[1746949448286,4.08880503,2468.6,2468.5,6.155]
[1746949448588,8.0,2468.3,2467.7,20.1407]
[1746949448780,4.05219223,2467.8,2467.7,19.515]
[1746949448980,12.09011822,2467.8,2467.7,19.515]
[1746949449177,12.05219223,2467.8,2467.7,19.515]
[1746949450091,4.05349329,2467.1,2466.9,6.156]
[1746949450294,4.05400558,2466.7,2466.5,6.156]
[1746949450480,4.05400558,2466.7,2466.4,0.6257]
[1746949450481,4.09219967,2466.6,2466.4,6.7817]
[1746949450679,4.05432799,2466.5,2466.4,6.156]
[1746949450886,0.03792599,2466.6,2466.1,13.362]
[1746949451190,4.05403672,2466.7,2466.1,13.362]
[1746949451395,4.05444422,2466.5,2466.1,13.362]
[1746949451573,0.03792599,2466.4,2466.1,13.362]
[1746949451768,0.03792599,2466.8,2466.2,0.04054546]
[1746949451968,4.05410299,2466.7,2466.1,13.362]
[1746949452297,0.03792599,2466.6,2466.1,13.362]
[1746949452795,4.05416362,2466.6,2466.1,13.362]
[1746949452962,0.03792599,2467.1,2466.2,0.04054529]
[1746949453292,8.0,2467.5,2466.2,1.3362]
[1746949453293,4.09105722,2467.3,2466.2,1.3362]
[1746949453609,6.003,2467.7,2466.2,1.3362]